fUST/lending_fUST_20260523
["ID","MTS","AMOUNT","RATE_DAILY","PERIOD"]
[422860923,1779537047000,-500.0,8.219e-05,2]
[422860921,1779537047000,-365.78944852,8.219e-05,2]
[422860924,1779537047000,-500.0,8.219e-05,2]
[422860927,1779537047000,-500.0,8.219e-05,2]
[422860925,1779537047000,-456.9201046,8.219e-05,2]
[422860920,1779537047000,-1683.70753463,8.04e-05,2]
[422860919,1779537047000,-1649.72493211,8.04e-05,2]
[422860917,1779537047000,-226.6573469,8.029e-05,2]
[422860922,1779537047000,-500.0,8.219e-05,2]
[422860928,1779537047000,-583.55,8.219e-05,2]
[422860918,1779537047000,-33.98260252,8.04e-05,2]
[422860931,1779537047000,-500.0,8.219e-05,2]
[422860929,1779537047000,-500.0,8.219e-05,2]
[422860939,1779537047000,-500.0,8.219e-05,2]
[422860934,1779537047000,-595.61,8.219e-05,2]
[422860938,1779537047000,-532.67,8.219e-05,2]
[422860937,1779537047000,-500.0,8.219e-05,2]
[422860940,1779537047000,-1375.58223807,8.219e-05,2]
[422860935,1779537047000,-500.0,8.219e-05,2]
[422860933,1779537047000,-862.2,8.219e-05,2]
[422860932,1779537047000,-500.0,8.219e-05,2]
[422860930,1779537047000,-500.0,8.219e-05,2]
[422860936,1779537047000,-756.05,8.219e-05,2]
[422860945,1779537801000,10884.13318986,0.00011,120]
[422860962,1779537951000,-300.0,7.753e-05,2]
[422860972,1779537951000,-300.0,7.753e-05,2]
[422860968,1779537951000,-300.0,7.753e-05,2]
[422860969,1779537951000,-300.0,7.753e-05,2]
[422860970,1779537951000,-300.0,7.753e-05,2]
[422860967,1779537951000,-300.0,7.753e-05,2]
[422860964,1779537951000,-300.0,7.753e-05,2]
[422860965,1779537951000,-300.0,7.753e-05,2]
[422860956,1779537951000,-1200.0,7.747e-05,2]
[422860961,1779537951000,-1200.0,7.749e-05,2]
[422860959,1779537951000,-300.0,7.748e-05,2]
[422860960,1779537951000,-300.0,7.748e-05,2]
[422860958,1779537951000,-300.0,7.748e-05,2]
[422860957,1779537951000,-300.0,7.748e-05,2]
[422860971,1779537951000,-300.0,7.753e-05,2]
[422860955,1779537951000,-521.97123612,7.551e-05,2]
[422860954,1779537951000,-5000.0,7.446e-05,2]
[422860963,1779537951000,-300.0,7.753e-05,2]
[422860975,1779537951000,-300.0,7.753e-05,2]
[422860966,1779537951000,-300.0,7.753e-05,2]
[422860973,1779537951000,-300.0,7.753e-05,2]
[422860974,1779537951000,-300.0,7.753e-05,2]
[422860994,1779537951000,-706.35329841,8.218e-05,2]
[422860993,1779537951000,-706.35329841,8.218e-05,2]
[422860992,1779537951000,-706.35329841,8.218e-05,2]
[422860991,1779537951000,-35150.0,8.217e-05,2]
[422860987,1779537951000,-500.0,8.216e-05,2]
[422860986,1779537951000,-500.0,8.216e-05,2]
[422860989,1779537951000,-169.39859369,8.216e-05,2]
[422860990,1779537951000,-500.0,8.216e-05,2]
[422860982,1779537951000,-500.0,8.216e-05,2]
[422860988,1779537951000,-500.0,8.216e-05,2]
[422860984,1779537951000,-444.29491378,8.216e-05,2]
[422860985,1779537951000,-500.0,8.216e-05,2]
[422860981,1779537951000,-412.52752851,8.216e-05,2]
[422860980,1779537951000,-500.0,8.216e-05,2]
[422860979,1779537951000,-500.0,8.216e-05,2]
[422860978,1779537951000,-600.0,7.907e-05,2]
[422860977,1779537951000,-151.0,7.893e-05,2]
[422860983,1779537951000,-500.0,8.216e-05,2]
[422860976,1779537951000,-300.0,7.753e-05,2]
[422861010,1779537952000,-796.55094524,8.218e-05,2]
[422861012,1779537952000,-796.55094524,8.218e-05,2]
[422861011,1779537952000,-796.55094524,8.218e-05,2]
[422861014,1779537952000,-204.32502231,8.218e-05,2]
[422861017,1779537952000,-500.0,8.219e-05,2]
[422861013,1779537952000,-796.55094524,8.218e-05,2]
[422861015,1779537952000,-500.0,8.219e-05,2]
[422861018,1779537952000,-632.73656571,8.219e-05,2]
[422861008,1779537952000,-711.3986791,8.218e-05,2]
[422861016,1779537952000,-500.0,8.219e-05,2]
[422861005,1779537952000,-711.3986791,8.218e-05,2]
[422860996,1779537952000,-706.35329841,8.218e-05,2]
[422861007,1779537952000,-711.3986791,8.218e-05,2]
[422861004,1779537952000,-711.3986791,8.218e-05,2]
[422861003,1779537952000,-706.35329841,8.218e-05,2]
[422861001,1779537952000,-706.35329841,8.218e-05,2]
[422861002,1779537952000,-706.35329841,8.218e-05,2]
[422861000,1779537952000,-706.35329841,8.218e-05,2]
[422860999,1779537952000,-706.35329841,8.218e-05,2]
[422860998,1779537952000,-706.35329841,8.218e-05,2]
[422860995,1779537952000,-706.35329841,8.218e-05,2]
[422860997,1779537952000,-706.35329841,8.218e-05,2]
[422861019,1779537952000,-1648.6877,8.219e-05,2]
[422861006,1779537952000,-711.3986791,8.218e-05,2]
[422861021,1779537952000,-501.3979211,8.219e-05,2]
[422861009,1779537952000,-711.3986791,8.218e-05,2]
[422861022,1779537952000,-501.26311728,8.219e-05,2]
[422861044,1779537952000,-500.0,8.219e-05,2]
[422861043,1779537952000,-500.0,8.219e-05,2]
[422861042,1779537952000,-500.0,8.219e-05,2]
[422861041,1779537952000,-501.88424725,8.219e-05,2]
[422861037,1779537952000,-500.0,8.219e-05,2]
[422861040,1779537952000,-500.0,8.219e-05,2]
[422861039,1779537952000,-500.0,8.219e-05,2]
[422861038,1779537952000,-500.0,8.219e-05,2]
[422861036,1779537952000,-500.0,8.219e-05,2]
[422861031,1779537952000,-501.59499998,8.219e-05,2]
[422861034,1779537952000,-501.60028785,8.219e-05,2]
[422861035,1779537952000,-648.51727079,8.219e-05,2]
[422861033,1779537952000,-500.0,8.219e-05,2]
[422861032,1779537952000,-500.0,8.219e-05,2]
[422861046,1779537952000,-501.35082466,8.219e-05,2]
[422861030,1779537952000,-500.0,8.219e-05,2]
[422861029,1779537952000,-500.0,8.219e-05,2]
[422861028,1779537952000,-501.12217388,8.219e-05,2]
[422861027,1779537952000,-500.0,8.219e-05,2]
[422861026,1779537952000,-502.06659132,8.219e-05,2]
[422861025,1779537952000,-500.0,8.219e-05,2]
[422861024,1779537952000,-500.0,8.219e-05,2]
[422861023,1779537952000,-500.0,8.219e-05,2]
[422861045,1779537952000,-613.52571167,8.219e-05,2]
[422861020,1779537952000,-501.30718118,8.219e-05,2]
[422861047,1779537953000,-500.0,8.219e-05,2]
[422861048,1779537953000,-315.25018995,8.219e-05,2]
[422861052,1779538030000,-186.55165874,8.219e-05,2]
[422861070,1779538030000,-358.10931722,8.219e-05,2]
[422861064,1779538030000,-500.0,8.219e-05,2]
[422861069,1779538030000,-623.60612776,8.219e-05,2]
[422861067,1779538030000,-604.37665121,8.219e-05,2]
[422861066,1779538030000,-565.18865846,8.219e-05,2]
[422861068,1779538030000,-500.0,8.219e-05,2]
[422861065,1779538030000,-500.0,8.219e-05,2]
[422861062,1779538030000,-500.0,8.219e-05,2]
[422861061,1779538030000,-380.19648951,8.219e-05,2]
[422861060,1779538030000,-221.01231574,8.219e-05,2]
[422861063,1779538030000,-501.88626111,8.219e-05,2]
[422861059,1779538030000,-500.0,8.219e-05,2]
[422861057,1779538030000,-500.0,8.219e-05,2]
[422861056,1779538030000,-500.0,8.219e-05,2]
[422861055,1779538030000,-500.74632693,8.219e-05,2]
[422861053,1779538030000,-501.57994855,8.219e-05,2]
[422861054,1779538030000,-500.0,8.219e-05,2]
[422861050,1779538030000,-5000.0,8.136e-05,2]
[422861051,1779538030000,-300.0,8.218e-05,2]
[422861049,1779538030000,-151.0,7.892e-05,2]
[422861058,1779538030000,-500.0,8.219e-05,2]
[422861072,1779538030000,-500.0,8.219e-05,2]
[422861071,1779538030000,-178.30154787,8.219e-05,2]
[422861075,1779538030000,-500.0,8.219e-05,2]
[422861074,1779538030000,-500.0,8.219e-05,2]
[422861095,1779538030000,-545.49,8.219e-05,2]
[422861094,1779538030000,-500.0,8.219e-05,2]
[422861096,1779538030000,-400.0,8.219e-05,2]
[422861092,1779538030000,-4228.82,8.219e-05,2]
[422861093,1779538030000,-724.55,8.219e-05,2]
[422861091,1779538030000,-500.0,8.219e-05,2]
[422861089,1779538030000,-500.0,8.219e-05,2]
[422861087,1779538030000,-500.0,8.219e-05,2]
[422861088,1779538030000,-500.0,8.219e-05,2]
[422861083,1779538030000,-648.39980519,8.219e-05,2]
[422861090,1779538030000,-500.0,8.219e-05,2]
[422861086,1779538030000,-501.74773393,8.219e-05,2]
[422861084,1779538030000,-500.0,8.219e-05,2]
[422861077,1779538030000,-500.0,8.219e-05,2]
[422861076,1779538030000,-500.0,8.219e-05,2]
[422861079,1779538030000,-500.0,8.219e-05,2]
[422861080,1779538030000,-500.0,8.219e-05,2]
[422861073,1779538030000,-500.0,8.219e-05,2]
[422861082,1779538030000,-603.63,8.219e-05,2]
[422861081,1779538030000,-872.61,8.219e-05,2]
[422861085,1779538030000,-500.0,8.219e-05,2]
[422861078,1779538030000,-500.0,8.219e-05,2]
[422861111,1779538031000,-500.0,8.219e-05,2]
[422861119,1779538031000,-500.0,8.219e-05,2]
[422861118,1779538031000,-952.38,8.219e-05,2]
[422861117,1779538031000,-500.0,8.219e-05,2]
[422861116,1779538031000,-500.0,8.219e-05,2]
[422861115,1779538031000,-500.0,8.219e-05,2]
[422861114,1779538031000,-500.0,8.219e-05,2]
[422861113,1779538031000,-197.130996,8.219e-05,2]
[422861112,1779538031000,-500.0,8.219e-05,2]
[422861110,1779538031000,-797.1,8.219e-05,2]
[422861108,1779538031000,-577.47,8.219e-05,2]
[422861099,1779538031000,-500.0,8.219e-05,2]
[422861105,1779538031000,-500.0,8.219e-05,2]
[422861106,1779538031000,-500.0,8.219e-05,2]
[422861107,1779538031000,-500.0,8.219e-05,2]
[422861104,1779538031000,-500.0,8.219e-05,2]
[422861103,1779538031000,-500.0,8.219e-05,2]
[422861100,1779538031000,-169.42905729,8.219e-05,2]
[422861102,1779538031000,-500.0,8.219e-05,2]
[422861098,1779538031000,-930.04,8.219e-05,2]
[422861101,1779538031000,-500.0,8.219e-05,2]
[422861097,1779538031000,-500.0,8.219e-05,2]
[422861109,1779538031000,-500.0,8.219e-05,2]
[422861121,1779538031000,-500.0,8.219e-05,2]
[422861120,1779538031000,-500.0,8.219e-05,2]
[422861122,1779538031000,-213.21916119,8.219e-05,7]
[422861123,1779538031000,-426.43832238,8.219e-05,7]
[422861146,1779538031000,-161.33499856,8.219e-05,7]
[422861144,1779538031000,-579.74617249,8.219e-05,7]
[422861145,1779538031000,-577.56255338,8.219e-05,7]
[422861143,1779538031000,-561.57664143,8.219e-05,7]
[422861142,1779538031000,-374.38442762,8.219e-05,7]
[422861139,1779538031000,-576.98645302,8.219e-05,7]
[422861141,1779538031000,-187.19221381,8.219e-05,7]
[422861140,1779538031000,-769.3152707,8.219e-05,7]
[422861134,1779538031000,-183.95877809,8.219e-05,7]
[422861138,1779538031000,-384.65763535,8.219e-05,7]
[422861137,1779538031000,-192.32881767,8.219e-05,7]
[422861147,1779538031000,-322.66999712,8.219e-05,7]
[422861135,1779538031000,-367.91755618,8.219e-05,7]
[422861136,1779538031000,-551.87633428,8.219e-05,7]
[422861124,1779538031000,-184.13665299,8.219e-05,7]
[422861126,1779538031000,-852.87664475,8.219e-05,7]
[422861128,1779538031000,-552.40995896,8.219e-05,7]
[422861127,1779538031000,-368.27330597,8.219e-05,7]
[422861125,1779538031000,-639.65748356,8.219e-05,7]
[422861131,1779538031000,-386.49744833,8.219e-05,7]
[422861132,1779538031000,-288.78127669,8.219e-05,7]
[422861129,1779538031000,-736.54661195,8.219e-05,7]
[422861133,1779538031000,-500.0,8.219e-05,2]
[422861130,1779538031000,-193.24872416,8.219e-05,7]
[422861169,1779538032000,-600.0,8.382e-05,2]
[422861160,1779538032000,-300.0,8.382e-05,2]
[422861165,1779538032000,-300.0,8.382e-05,2]
[422861168,1779538032000,-300.0,8.382e-05,2]
[422861167,1779538032000,-300.0,8.382e-05,2]
[422861166,1779538032000,-300.0,8.382e-05,2]
[422861164,1779538032000,-300.0,8.382e-05,2]
[422861163,1779538032000,-300.0,8.382e-05,2]
[422861161,1779538032000,-300.0,8.382e-05,2]
[422861162,1779538032000,-300.0,8.382e-05,2]
[422861159,1779538032000,-300.0,8.382e-05,2]
[422861153,1779538032000,-152.0,8.22e-05,7]
[422861157,1779538032000,-300.0,8.382e-05,2]
[422861156,1779538032000,-300.0,8.382e-05,2]
[422861155,1779538032000,-300.0,8.382e-05,2]
[422861154,1779538032000,-300.0,8.382e-05,2]
[422861152,1779538032000,-497.2577449,8.219e-05,7]
[422861150,1779538032000,-165.75258163,8.219e-05,7]
[422861151,1779538032000,-331.50516326,8.219e-05,7]
[422861148,1779538032000,-484.00499569,8.219e-05,7]
[422861149,1779538032000,-151.0,8.219e-05,2]
[422861171,1779538032000,-151.0,8.39e-05,2]
[422861158,1779538032000,-300.0,8.382e-05,2]
[422861170,1779538032000,-163.78465323,8.39e-05,2]
[422861173,1779538032000,-151.0,8.39e-05,2]
[422861190,1779538032000,-724.55,8.493e-05,2]
[422861172,1779538032000,-151.0,8.39e-05,2]
[422861195,1779538032000,-500.0,8.493e-05,2]
[422861196,1779538032000,-500.0,8.493e-05,2]
[422861192,1779538032000,-545.49,8.493e-05,2]
[422861193,1779538032000,-500.0,8.493e-05,2]
[422861194,1779538032000,-930.04,8.493e-05,2]
[422861191,1779538032000,-500.0,8.493e-05,2]
[422861188,1779538032000,-500.0,8.493e-05,2]
[422861187,1779538032000,-500.0,8.493e-05,2]
[422861197,1779538032000,-500.0,8.493e-05,2]
[422861184,1779538032000,-603.63,8.493e-05,2]
[422861186,1779538032000,-547.50512518,8.493e-05,2]
[422861185,1779538032000,-500.0,8.493e-05,2]
[422861181,1779538032000,-500.0,8.493e-05,2]
[422861180,1779538032000,-500.0,8.493e-05,2]
[422861182,1779538032000,-500.0,8.493e-05,2]
[422861183,1779538032000,-872.61,8.493e-05,2]
[422861179,1779538032000,-500.0,8.493e-05,2]
[422861177,1779538032000,-500.0,8.493e-05,2]
[422861176,1779538032000,-500.0,8.493e-05,2]
[422861178,1779538032000,-500.0,8.493e-05,2]
[422861174,1779538032000,-156.78401659,8.39e-05,2]
[422861175,1779538032000,-1284.7887,8.493e-05,2]
[422861189,1779538032000,-4228.82,8.493e-05,2]
[422861213,1779538033000,-2034.32336982,8.497e-05,2]
[422861215,1779538033000,-1779.25583006,8.546e-05,2]
[422861212,1779538033000,-961.64408837,8.496e-05,7]
[422861214,1779538033000,-1779.25583006,8.546e-05,2]
[422861221,1779538033000,-500.0,8.767e-05,2]
[422861218,1779538033000,-500.0,8.767e-05,2]
[422861217,1779538033000,-1284.7887,8.767e-05,2]
[422861219,1779538033000,-500.0,8.767e-05,2]
[422861210,1779538033000,-920.68326493,8.496e-05,7]
[422861216,1779538033000,-850.40122884,8.668e-05,2]
[422861211,1779538033000,-1066.09580594,8.496e-05,7]
[422861198,1779538033000,-577.47,8.493e-05,2]
[422861207,1779538033000,-500.0,8.493e-05,2]
[422861205,1779538033000,-952.38,8.493e-05,2]
[422861208,1779538033000,-500.0,8.493e-05,2]
[422861206,1779538033000,-500.0,8.493e-05,2]
[422861204,1779538033000,-500.0,8.493e-05,2]
[422861203,1779538033000,-500.0,8.493e-05,2]
[422861202,1779538033000,-500.0,8.493e-05,2]
[422861200,1779538033000,-797.1,8.493e-05,2]
[422861201,1779538033000,-500.0,8.493e-05,2]
[422861199,1779538033000,-500.0,8.493e-05,2]
[422861209,1779538033000,-500.0,8.493e-05,2]
[422861220,1779538033000,-500.0,8.767e-05,2]
[422861231,1779538033000,-500.0,8.767e-05,2]
[422861222,1779538033000,-500.0,8.767e-05,2]
[422861223,1779538033000,-500.0,8.767e-05,2]
[422861247,1779538033000,-160.0,8.845e-05,2]
[422861245,1779538033000,-500.0,8.767e-05,2]
[422861240,1779538033000,-500.0,8.767e-05,2]
[422861244,1779538033000,-500.0,8.767e-05,2]
[422861243,1779538033000,-952.38,8.767e-05,2]
[422861241,1779538033000,-500.0,8.767e-05,2]
[422861242,1779538033000,-500.0,8.767e-05,2]
[422861239,1779538033000,-797.1,8.767e-05,2]
[422861236,1779538033000,-500.0,8.767e-05,2]
[422861238,1779538033000,-500.0,8.767e-05,2]
[422861246,1779538033000,-500.0,8.767e-05,2]
[422861235,1779538033000,-633.75966842,8.767e-05,2]
[422861237,1779538033000,-577.47,8.767e-05,2]
[422861226,1779538033000,-500.0,8.767e-05,2]
[422861227,1779538033000,-500.0,8.767e-05,2]
[422861229,1779538033000,-4228.82,8.767e-05,2]
[422861228,1779538033000,-500.0,8.767e-05,2]
[422861224,1779538033000,-872.61,8.767e-05,2]
[422861230,1779538033000,-724.55,8.767e-05,2]
[422861232,1779538033000,-545.49,8.767e-05,2]
[422861234,1779538033000,-930.04,8.767e-05,2]
[422861233,1779538033000,-500.0,8.767e-05,2]
[422861225,1779538033000,-603.63,8.767e-05,2]
[422861258,1779538034000,-420.0,9.04e-05,2]
[422861265,1779538034000,-500.0,9.041e-05,2]
[422861264,1779538034000,-500.0,9.041e-05,2]
[422861263,1779538034000,-500.0,9.041e-05,2]
[422861261,1779538034000,-500.0,9.041e-05,2]
[422861262,1779538034000,-500.0,9.041e-05,2]
[422861260,1779538034000,-500.0,9.041e-05,2]
[422861256,1779538034000,-2151.00636996,8.996e-05,2]
[422861253,1779538034000,-1279.31496713,8.911e-05,7]
[422861259,1779538034000,-1284.7887,9.041e-05,2]
[422861255,1779538034000,-1153.97290605,8.911e-05,7]
[422861252,1779538034000,-178.30154785,8.864e-05,2]
[422861254,1779538034000,-1104.81991792,8.911e-05,7]
[422861250,1779538034000,-160.0,8.845e-05,2]
[422861251,1779538034000,-160.0,8.845e-05,2]
[422861249,1779538034000,-766.63845589,8.845e-05,2]
[422861248,1779538034000,-161.73153808,8.845e-05,2]
[422861266,1779538034000,-872.61,9.041e-05,2]
[422861257,1779538034000,-826.49163418,9.008e-05,2]
[422861267,1779538034000,-603.63,9.041e-05,2]
[422861274,1779538034000,-545.49,9.041e-05,2]
[422861269,1779538034000,-500.0,9.041e-05,2]
[422861268,1779538034000,-500.0,9.041e-05,2]
[422861287,1779538034000,-500.0,9.041e-05,2]
[422861288,1779538034000,-1865.07308024,9.053e-05,2]
[422861286,1779538034000,-500.0,9.041e-05,2]
[422861284,1779538034000,-952.38,9.041e-05,2]
[422861285,1779538034000,-500.0,9.041e-05,2]
[422861282,1779538034000,-500.0,9.041e-05,2]
[422861283,1779538034000,-500.0,9.041e-05,2]
[422861281,1779538034000,-500.0,9.041e-05,2]
[422861289,1779538034000,-175.23856364,9.053e-05,2]
[422861279,1779538034000,-500.0,9.041e-05,2]
[422861280,1779538034000,-797.1,9.041e-05,2]
[422861272,1779538034000,-724.55,9.041e-05,2]
[422861273,1779538034000,-500.0,9.041e-05,2]
[422861271,1779538034000,-4228.82,9.041e-05,2]
[422861270,1779538034000,-500.0,9.041e-05,2]
[422861276,1779538034000,-930.04,9.041e-05,2]
[422861278,1779538034000,-577.47,9.041e-05,2]
[422861277,1779538034000,-500.0,9.041e-05,2]
[422861275,1779538034000,-500.0,9.041e-05,2]
[422861346,1779538232000,-15.62573076,8.218e-05,2]
[422861366,1779538232000,-727.18,8.219e-05,2]
[422861362,1779538232000,-327.41294831,8.219e-05,2]
[422861358,1779538232000,-500.0,8.219e-05,2]
[422861360,1779538232000,-172.58705169,8.219e-05,2]
[422861356,1779538232000,-500.0,8.219e-05,2]
[422861352,1779538232000,-300.0,8.218e-05,2]
[422861350,1779538232000,-300.0,8.218e-05,2]
[422861334,1779538232000,-1200.0,8.217e-05,2]
[422861348,1779538232000,-284.37426924,8.218e-05,2]
[422861344,1779538232000,-1200.0,8.218e-05,2]
[422861364,1779538232000,-500.0,8.219e-05,2]
[422861330,1779538232000,-438.23496928,8.135e-05,2]
[422861332,1779538232000,-803.16954036,8.135e-05,2]
[422861327,1779538232000,-3211.24336618,8.135e-05,2]
[422861320,1779538232000,-547.35212418,8.135e-05,2]
[422861354,1779538232000,-300.0,8.218e-05,2]
[422861370,1779538232000,-603.79,8.219e-05,2]
[422861342,1779538232000,-521.97123612,8.218e-05,2]
[422861368,1779538232000,-503.03,8.219e-05,2]
[422861378,1779538232000,-500.0,8.219e-05,2]
[422861406,1779538232000,-664.29614219,8.219e-05,7]
[422861404,1779538232000,-332.14807109,8.219e-05,7]
[422861399,1779538232000,-358.55498262,8.219e-05,7]
[422861382,1779538232000,-775.03,8.219e-05,2]
[422861401,1779538232000,-166.07403555,8.219e-05,7]
[422861388,1779538232000,-664.25,8.219e-05,2]
[422861394,1779538232000,-179.27749131,8.219e-05,7]
[422861386,1779538232000,-500.0,8.219e-05,2]
[422861384,1779538232000,-500.0,8.219e-05,2]
[422861397,1779538232000,-537.83247393,8.219e-05,7]
[422861372,1779538232000,-500.0,8.219e-05,2]
[422861374,1779538232000,-500.0,8.219e-05,2]
[422861380,1779538232000,-1833.3253,8.219e-05,2]
[422861376,1779538232000,-3524.01,8.219e-05,2]
[422861392,1779538232000,-212.57395639,8.219e-05,7]
[422861390,1779538232000,-500.0,8.219e-05,2]
[422861395,1779538232000,-717.10996524,8.219e-05,7]
[422861460,1779538233000,-300.0,8.662e-05,2]
[422861466,1779538233000,-300.0,8.662e-05,2]
[422861468,1779538233000,-300.0,8.662e-05,2]
[422861456,1779538233000,-300.0,8.662e-05,2]
[422861472,1779538233000,-300.0,8.662e-05,2]
[422861470,1779538233000,-300.0,8.662e-05,2]
[422861458,1779538233000,-300.0,8.662e-05,2]
[422861462,1779538233000,-300.0,8.662e-05,2]
[422861474,1779538233000,-300.0,8.662e-05,2]
[422861497,1779538233000,-503.03,8.767e-05,2]
[422861476,1779538233000,-300.0,8.662e-05,2]
[422861478,1779538233000,-500.0,8.766e-05,2]
[422861481,1779538233000,-500.0,8.766e-05,2]
[422861491,1779538233000,-500.0,8.767e-05,2]
[422861493,1779538233000,-527.24215207,8.767e-05,2]
[422861495,1779538233000,-727.18,8.767e-05,2]
[422861487,1779538233000,-500.0,8.766e-05,2]
[422861448,1779538233000,-300.0,8.662e-05,2]
[422861464,1779538233000,-300.0,8.662e-05,2]
[422861452,1779538233000,-300.0,8.662e-05,2]
[422861430,1779538233000,-500.0,8.493e-05,2]
[422861432,1779538233000,-1833.3253,8.493e-05,2]
[422861410,1779538233000,-152.0,8.22e-05,7]
[422861414,1779538233000,-500.0,8.493e-05,2]
[422861422,1779538233000,-603.79,8.493e-05,2]
[422861412,1779538233000,-500.0,8.493e-05,2]
[422861416,1779538233000,-500.0,8.493e-05,2]
[422861420,1779538233000,-503.03,8.493e-05,2]
[422861418,1779538233000,-727.18,8.493e-05,2]
[422861426,1779538233000,-500.0,8.493e-05,2]
[422861408,1779538233000,-498.22210664,8.219e-05,7]
[422861424,1779538233000,-500.0,8.493e-05,2]
[422861428,1779538233000,-3524.01,8.493e-05,2]
[422861483,1779538233000,-500.0,8.766e-05,2]
[422861438,1779538233000,-664.25,8.493e-05,2]
[422861440,1779538233000,-500.0,8.493e-05,2]
[422861442,1779538233000,-896.38745655,8.496e-05,7]
[422861444,1779538233000,-830.37017774,8.496e-05,7]
[422861434,1779538233000,-775.03,8.493e-05,2]
[422861436,1779538233000,-500.0,8.493e-05,2]
[422861446,1779538233000,-500.0,8.662e-05,2]
[422861450,1779538233000,-300.0,8.662e-05,2]
[422861498,1779538233000,-603.79,8.767e-05,2]
[422861454,1779538233000,-300.0,8.662e-05,2]
[422861485,1779538233000,-500.0,8.766e-05,2]
[422861525,1779538233000,-500.0,9.04e-05,2]
[422861528,1779538233000,-500.0,9.04e-05,2]
[422861529,1779538233000,-538.36748177,9.041e-05,2]
[422861531,1779538233000,-727.18,9.041e-05,2]
[422861527,1779538233000,-500.0,9.04e-05,2]
[422861530,1779538233000,-500.0,9.041e-05,2]
[422861538,1779538233000,-1833.3253,9.041e-05,2]
[422861536,1779538233000,-3524.01,9.041e-05,2]
[422861533,1779538233000,-603.79,9.041e-05,2]
[422861532,1779538233000,-503.03,9.041e-05,2]
[422861534,1779538233000,-500.0,9.041e-05,2]
[422861537,1779538233000,-500.0,9.041e-05,2]
[422861535,1779538233000,-500.0,9.041e-05,2]
[422861540,1779538233000,-500.0,9.041e-05,2]
[422861545,1779538233000,-2167.19413998,9.123e-05,2]
[422861544,1779538233000,-2649.80241374,9.123e-05,2]
[422861543,1779538233000,-1689.8345166,9.053e-05,2]
[422861542,1779538233000,-500.0,9.041e-05,2]
[422861489,1779538233000,-500.0,8.767e-05,2]
[422861520,1779538233000,-1075.66494786,8.911e-05,7]
[422861518,1779538233000,-766.63845589,8.879e-05,2]
[422861539,1779538233000,-775.03,9.041e-05,2]
[422861523,1779538233000,-500.0,9.04e-05,2]
[422861500,1779538233000,-500.0,8.767e-05,2]
[422861502,1779538233000,-500.0,8.767e-05,2]
[422861503,1779538233000,-3488.86134624,8.767e-05,2]
[422861514,1779538233000,-500.0,8.767e-05,2]
[422861509,1779538233000,-908.06644971,8.767e-05,2]
[422861524,1779538233000,-500.0,9.04e-05,2]
[422861508,1779538233000,-471.66918416,8.767e-05,2]
[422861513,1779538233000,-664.25,8.767e-05,2]
[422861507,1779538233000,-500.0,8.767e-05,2]
[422861506,1779538233000,-35.14865376,8.767e-05,2]
[422861512,1779538233000,-500.0,8.767e-05,2]
[422861511,1779538233000,-775.03,8.767e-05,2]
[422861516,1779538233000,-160.0,8.879e-05,2]
[422861526,1779538233000,-160.0,9.04e-05,2]
[422861515,1779538233000,-600.0,8.834e-05,2]
[422861517,1779538233000,-161.73153808,8.879e-05,2]
[422861521,1779538233000,-996.44421328,8.911e-05,7]
[422861541,1779538233000,-664.25,9.041e-05,2]
[422861519,1779538233000,-160.0,8.879e-05,2]
[422861510,1779538233000,-453.58966613,8.767e-05,2]
[422861522,1779538233000,-500.0,8.936e-05,2]
[422861596,1779538239000,-547.04494404,9.143e-05,2]
[422861593,1779538239000,-547.04494404,9.143e-05,2]
[422861590,1779538239000,-547.04494404,9.143e-05,2]
[422861591,1779538239000,-547.04494404,9.143e-05,2]
[422861585,1779538239000,-547.04494404,9.143e-05,2]
[422861595,1779538239000,-547.04494404,9.143e-05,2]
[422861588,1779538239000,-547.04494404,9.143e-05,2]
[422861583,1779538239000,-5183.00344628,9.123e-05,2]
[422861599,1779538239000,-547.04494404,9.143e-05,2]
[422861586,1779538239000,-527.26499107,9.143e-05,2]
[422861601,1779538239000,-547.04494404,9.143e-05,2]
[422861619,1779538239000,-2204.0,9.165e-05,2]
[422861597,1779538239000,-547.04494404,9.143e-05,2]